fUST/lending_fUST_20240112
["ID","MTS","AMOUNT","RATE_DAILY","PERIOD"]
[311264474,1705002643446,-511.57086449,0.00031581,5]
[311264476,1705002643456,-155.0,0.0003161,2]
[311264478,1705002643465,-154.09671267,0.00031675,7]
[311264479,1705002643474,-152.31739518,0.00031694,7]
[311264482,1705002643484,-153.0,0.00031726,2]
[311264484,1705002643494,-153.0,0.00031726,2]
[311264486,1705002643503,-153.0,0.00031726,2]
[311264488,1705002643512,-153.0,0.00031726,2]
[311264490,1705002643524,-153.0,0.00031726,2]
[311264492,1705002643534,-153.0,0.00031726,2]
[311264494,1705002643543,-153.0,0.00031726,2]
[311264496,1705002643553,-153.0,0.00031726,2]
[311264498,1705002643562,-911.75,0.0003178,2]
[311264500,1705002643572,-500.0,0.0003178,2]
[311264502,1705002643582,-500.0,0.0003178,2]
[311264504,1705002643592,-565.82,0.0003178,2]
[311264506,1705002643601,-500.0,0.0003178,2]
[311264508,1705002643611,-983.51,0.0003178,2]
[311264510,1705002643622,-500.0,0.0003178,2]
[311264512,1705002643630,-500.0,0.0003178,2]
[311264514,1705002643640,-500.0,0.0003178,2]
[311264516,1705002643649,-12640.23,0.0003178,2]
[311264518,1705002643658,-500.0,0.0003178,2]
[311264520,1705002643668,-500.0,0.0003178,2]
[311264522,1705002643677,-1915.09,0.0003178,2]
[311264524,1705002643686,-873.92,0.0003178,2]
[311264526,1705002643696,-631.31,0.0003178,2]
[311264528,1705002643706,-3115.09,0.0003178,2]
[311264530,1705002643716,-500.0,0.0003178,2]
[311264532,1705002643725,-1423.04,0.0003178,2]
[311264534,1705002643734,-6527.72,0.0003178,2]
[311264536,1705002643743,-500.0,0.0003178,2]
[311264538,1705002643752,-500.0,0.0003178,2]
[311264540,1705002643761,-502.15,0.0003178,2]
[311264542,1705002643770,-616.86,0.0003178,2]
[311264544,1705002643779,-541.9,0.0003178,2]
[311264546,1705002643788,-500.0,0.0003178,2]
[311264548,1705002643796,-815.58,0.0003178,2]
[311264550,1705002643805,-1366.5,0.0003178,2]
[311264552,1705002643814,-500.0,0.0003178,2]
[311264554,1705002643823,-596.91,0.0003178,2]
[311264556,1705002643831,-2071.74,0.0003178,2]
[311264558,1705002643840,-516.0,0.0003178,2]
[311264560,1705002643849,-1390.9999,0.00031797,25]
[311264562,1705002643858,-1212.66691223,0.000318,2]
[311264564,1705002643867,-222.51133478,0.00031898,2]
[311264566,1705002643876,-38379.93475574,0.00031898,3]
[311264568,1705002643884,-1500.0,0.000319,2]
[311264570,1705002643893,-511.57,0.000319,5]
[311264572,1705002643902,-155.78182124,0.00031963,7]
[311264574,1705002643911,-1226.34901424,0.00031997,4]
[311264576,1705002643921,-451.49328758,0.00031997,4]
[311264578,1705002643930,-163.45012043,0.00031997,2]
[311264580,1705002643939,-9838.97755726,0.00031997,15]
[311264582,1705002643949,-2697.45131281,0.00031997,5]
[311264584,1705002643959,-686.8051383,0.00031997,4]
[311264587,1705002643968,-195.00350825,0.00031998,4]
[311264589,1705002643977,-5537.04008915,0.00031998,4]
[311264591,1705002643986,-1110.81916736,0.00031998,2]
[311264593,1705002643995,-324.57021837,0.00031998,4]
[311264594,1705002644005,-155.07598723,0.00031999,2]
[311264597,1705002644014,-2448.05627337,0.00031999,2]
[311264599,1705002644023,-282.67247261,0.00031999,3]
[311264600,1705002644032,-409.88428547,0.00031999,2]
[311264603,1705002644041,-649.77067269,0.00031999,4]
[311264605,1705002644050,-4452.61455502,0.00031999,4]
[311264607,1705002644059,-350.70625815,0.00031999,2]
[311264609,1705002644068,-1001.6534877,0.00031999,14]
[311264610,1705002644076,-500.0,0.00031999,2]
[311264612,1705002644085,-500.0,0.00031999,2]
[311264614,1705002644094,-157.11446676,0.00031999,4]
[311264617,1705002644103,-500.0,0.00031999,2]
[311264619,1705002644112,-176233.67972,0.00031999,2]
[311264621,1705002644122,-500.0,0.00031999,2]
[311264623,1705002644131,-500.0,0.00031999,2]
[311264625,1705002644141,-500.0,0.00031999,2]
[311264627,1705002644151,-500.0,0.00031999,2]
[311264629,1705002644161,-500.0,0.00031999,2]
[311264631,1705002644170,-185.05483979,0.00031999,2]
[311264633,1705002644178,-500.0,0.00031999,2]
[311264635,1705002644187,-318.99540617,0.00031999,2]
[311264637,1705002644196,-500.0,0.00031999,2]
[311264639,1705002644205,-500.0,0.00031999,2]
[311264641,1705002644214,-303.93059961,0.00031999,2]
[311264643,1705002644223,-500.0,0.00031999,2]
[311264645,1705002644232,-500.0,0.00031999,2]
[311264646,1705002644241,-442.4965302,0.00031999,2]
[311264648,1705002644250,-500.0,0.00031999,2]
[311264651,1705002644260,-500.0,0.00031999,2]
[311264653,1705002644269,-500.0,0.00031999,2]
[311264655,1705002644278,-500.0,0.00031999,2]
[311264657,1705002644287,-500.0,0.00031999,2]
[311264659,1705002644296,-500.0,0.00031999,2]
[311264660,1705002644305,-500.0,0.00031999,2]
[311264663,1705002644314,-500.0,0.00031999,2]
[311264665,1705002644323,-500.0,0.00031999,2]
[311264666,1705002644333,-500.0,0.00031999,2]
[311264669,1705002644342,-500.0,0.00031999,2]
[311264671,1705002644351,-500.0,0.00031999,2]
[311264673,1705002644360,-204.57428982,0.00031999,2]
[311264675,1705002644370,-525.36615093,0.00031999,2]
[311264677,1705002644379,-225.15692182,0.00031999,2]
[311264679,1705002644388,-334.36433198,0.00031999,2]
[311264681,1705002644398,-334.36433198,0.00031999,2]
[311264683,1705002644407,-334.36433198,0.00031999,2]
[311264684,1705002644417,-500.0,0.00031999,4]
[311264686,1705002644427,-500.0,0.00031999,4]
[311264688,1705002644437,-620.09995057,0.00031999,4]
[311264690,1705002644449,-282.94151477,0.00031999,4]
[311264693,1705002644460,-500.0,0.00031999,4]
[311264695,1705002644471,-635.11282553,0.00031999,4]
[311264697,1705002644481,-500.0,0.00031999,4]
[311264699,1705002644490,-166.23715795,0.00031999,4]
[311264701,1705002644499,-156.33615054,0.00031999,4]
[311264703,1705002644508,-500.0,0.00031999,4]
[311264704,1705002644518,-555.49366813,0.00031999,4]
[311264707,1705002644528,-500.0,0.00031999,4]
[311264709,1705002644537,-500.0,0.00031999,4]
[311264711,1705002644547,-500.0,0.00031999,4]
[311264713,1705002644557,-500.0,0.00031999,4]
[311264714,1705002644566,-500.0,0.00031999,4]
[311264716,1705002644575,-500.0,0.00031999,4]
[311264718,1705002644585,-248.03998022,0.00031999,4]
[311264719,1705002644594,-218.33140383,0.00031999,2]
[311264720,1705002644603,-1000.0,0.00032,32]
[311264721,1705002644613,-1237.77700066,0.00032,2]
[311264722,1705002644622,-316.23203037,0.00032,4]
[311264723,1705002644631,-677.93427656,0.00032,3]
[311264725,1705002644640,-59561.44306764,0.00032,10]
[311264727,1705002644649,-78346.17647675,0.00032,15]
[311264729,1705002644904,-155.07288426,0.00013573,2]
[311264730,1705002644913,-15877.13272686,0.00013573,2]
[311264731,1705002644922,-2586.9888677,0.00032,15]
[311264806,1705002857386,1000.0,0.00012,7]
[311264808,1705002888199,155.08684864,0.00020998,4]
[311264809,1705002997123,1287.17016169,0.00020364,5]
[311264812,1705003217289,169.91439281,0.00013444,2]
[311264813,1705003220569,1245.76372875,0.00012187,2]
[311264814,1705003222078,8584.32187844,0.00012545,2]
[311264815,1705003222104,31890.23365416,0.00012545,2]
[311264816,1705003260812,309.7212787,0.00012545,2]
[311264817,1705003260860,1273.79512875,0.00012545,2]
[311264818,1705003260918,10281.69514377,0.00012545,2]
[311264819,1705003261490,182.5736117,0.00012545,2]
[311264820,1705003261923,3832.22352002,0.00012545,2]
[311264821,1705003264273,534.17597659,0.00012545,2]
[311264822,1705003266777,-1220.46777881,0.00013535,2]
[311264823,1705003266800,-204.41331979,0.00013535,2]
[311264824,1705003266823,-155.09150399,0.00013535,2]
[311264825,1705003266845,-594.07215949,0.00013535,2]
[311264826,1705003266869,-174.89741352,0.00013535,2]
[311264827,1705003266894,-7651.0578244,0.00013535,2]
[311264828,1705003275517,246.73185857,0.00012545,2]
[311264829,1705003276882,1209.38865568,0.00012545,2]
[311264830,1705003277932,1137.47287398,0.00012545,2]
[311264831,1705003278027,733.40054285,0.00012545,2]
[311264832,1705003278917,3112.0886116,0.00012545,2]
[311264834,1705003282283,533.60013953,0.00012545,2]
[311264835,1705003296043,733.40054285,0.00012545,2]
[311264836,1705003316023,618.9713353,0.00012545,2]
[311264838,1705003334733,250.0,0.0001252,2]
[311264839,1705003355615,13890.606028,0.00012545,2]
[311264840,1705003387605,18861.69174426,0.0001252,2]
[311264841,1705003392346,757.75701723,0.00012066,2]
[311264842,1705003396848,178.83619526,0.0001252,2]
[311264843,1705003398406,8742.16462345,0.00012144,2]
[311264844,1705003405523,182.50978617,0.0001252,2]
[311264845,1705003405606,13863.02869222,0.0001252,2]
[311264846,1705003405838,1465.85199932,0.00010055,2]
[311264847,1705003406008,1137.70095268,0.0001252,2]
[311264848,1705003406298,333.06538241,0.0001252,2]
[311264850,1705003411796,156.66039464,0.00012519,2]
[311264851,1705003418401,6175.30709534,0.0001178,2]
[311264852,1705003423836,5000.0,0.00012144,2]
[311264853,1705003425839,1465.85199932,0.00010052,2]
[311264854,1705003427519,182.50978617,0.00012144,2]
[311264855,1705003433673,826.8160661,0.00012406,2]
[311264857,1705003440025,155.11012819,0.00012144,2]
[311264859,1705003456034,155.11323266,0.00012144,2]
[311264860,1705003470534,-198.86702102,0.00013395,2]
[311264861,1705003470556,-643.07386759,0.00013395,2]
[311264862,1705003470577,-1124.72654412,0.00013395,2]
[311264863,1705003470598,-2927.79076094,0.00013395,2]
[311264864,1705003470620,-105.54180633,0.00013395,2]
[311264865,1705003476110,155.40328267,0.00012144,2]
[311264866,1705003504944,24900.0,0.00012515,2]
[311264868,1705003524638,263.77775513,0.00012049,2]
[311264869,1705003550632,1055.5390861,0.00012046,2]
[311264870,1705003583597,431.21370685,0.000126,2]
[311264871,1705003583987,431.21370685,0.000126,2]
[311264872,1705003584407,431.21370685,0.000126,2]
[311264873,1705003584810,431.21370685,0.000126,2]
[311264874,1705003585525,431.21370685,0.000126,2]
[311264875,1705003585959,431.21370685,0.000126,2]
[311264876,1705003586325,431.21370685,0.000126,2]
[311264877,1705003587232,431.21370685,0.000126,2]
[311264878,1705003587698,431.21370685,0.000126,2]
[311264879,1705003588051,431.2137,0.000126,2]
[311264887,1705003662214,813.879401,0.00012276,2]
[311264942,1705003833763,-400.09836622,0.00013243,2]
[311264944,1705003833773,-313.03128997,0.00013243,2]
[311264946,1705003833783,-155.1178896,0.00013243,2]
[311264948,1705003833793,-3478.77785184,0.00013243,2]
[311264950,1705003833803,-3738.72601468,0.00013244,2]
[311264952,1705003833813,-170.50663149,0.00013244,2]
[311264954,1705003833823,-1250.86956895,0.00013244,2]
[311264956,1705003833832,-2035.15445086,0.00013244,2]
[311264958,1705003833841,-300.69173635,0.00013244,2]
[311264960,1705003833851,-451.81472846,0.00013244,2]
[311264962,1705003833860,-1140.25366506,0.00013244,2]
[311264964,1705003833870,-7945.04739538,0.00013244,2]
[311264966,1705003833880,-155.1178896,0.00013244,2]
[311264968,1705003833889,-525.71054623,0.00013244,2]
[311264970,1705003833898,-1303.07505679,0.00013245,2]
[311264972,1705003833908,-155.1178896,0.00013245,2]
[311264974,1705003833917,-155.1178896,0.00013245,2]
[311264976,1705003833927,-1587.53319979,0.00013245,2]
[311264978,1705003833936,-964.75498104,0.00013245,2]
[311264980,1705003833946,-155.1178896,0.00013245,2]
[311264981,1705003833955,-560.56224867,0.00013245,2]
[311264983,1705003833965,-1291.19265067,0.00013245,2]
[311264985,1705003833975,-301.352632,0.00013245,2]
[311264986,1705003833985,-155.1178896,0.00013245,2]
[311264987,1705003833996,-554.2709692,0.00013246,2]
[311264988,1705003834005,-322.90358594,0.00013246,2]
[311264989,1705003834015,-155.1178896,0.00013246,2]
[311264990,1705003834025,-521.18657264,0.00013246,2]
[311264992,1705003834038,-860.94215638,0.00013246,2]
[311264994,1705003834051,-1030.79768525,0.00013246,2]
[311264995,1705003834061,-155.1178896,0.00013246,2]
[311264997,1705003834070,-631.34599195,0.00013246,2]
[311264999,1705003834079,-13694.49776337,0.00013246,2]
[311265001,1705003834091,-155.1178896,0.00013246,2]
[311265003,1705003834100,-260.63257169,0.00013247,2]
[311265004,1705003834109,-155.1178896,0.00013247,2]
[311265005,1705003834119,-245.29598374,0.00013247,2]
[311265007,1705003834130,-155.1178896,0.00013247,2]
[311265008,1705003834139,-1989.87267074,0.00013247,2]
[311265010,1705003834148,-976.18563318,0.00013247,2]
[311265011,1705003834158,-155.1178896,0.00013247,2]
[311265012,1705003834167,-2871.42236462,0.00013247,2]
[311265013,1705003834176,-34994.93609971,0.00013247,2]
[311265014,1705003834186,-1124.72654412,0.00013248,2]
[311265015,1705003834196,-213.00235315,0.00013248,2]
[311265016,1705003834205,-1737.54470302,0.00013248,2]
[311265017,1705003834215,-2014.8729825,0.00013248,2]
[311265018,1705003834224,-155.1178896,0.00013248,2]
[311265019,1705003834233,-360.80127126,0.00013248,2]
[311265020,1705003834244,-6602.15861025,0.00013248,2]
[311265021,1705003834253,-7988.52269899,0.00013248,2]
[311265022,1705003834262,-2708.97417906,0.00013249,2]
[311265023,1705003834271,-20865.20196494,0.00013249,2]
[311265024,1705003834280,-198.86702102,0.00013249,2]
[311265025,1705003834290,-155.1178896,0.00013249,2]
[311265026,1705003834299,-155.1178896,0.00013249,2]
[311265027,1705003834308,-2927.79076094,0.00013249,2]
[311265028,1705003834318,-587.15396194,0.00013249,2]
[311265029,1705003834326,-4789.41827786,0.0001325,2]
[311265030,1705003834335,-1181.69348832,0.0001325,2]
[311265031,1705003834345,-213.95710734,0.0001325,2]
[311265032,1705003834354,-643.07386759,0.0001325,2]
[311265033,1705003834363,-49397.65948104,0.0001325,2]
[311265034,1705003834376,-671.3367612,0.0001325,2]
[311265055,1705003838129,-322.47705028,0.00013243,2]
[311265057,1705003838139,-509.10030575,0.00013243,2]
[311265059,1705003838148,-319.29682652,0.00013243,2]
[311265061,1705003838157,-260.34948307,0.00013243,2]
[311265063,1705003838167,-20836.46606025,0.00013243,2]
[311265065,1705003838176,-30996.8714449,0.0001325,2]
[311265067,1705003838186,-36895.86463632,0.0001325,2]
[311265069,1705003838195,-19663.58309656,0.0001325,2]
[311265071,1705003838204,-1220.46777881,0.00013251,2]
[311265073,1705003838213,-155.1178896,0.00013251,2]
[311265075,1705003838223,-155.1178896,0.00013251,2]
[311265077,1705003838232,-23816.9487729,0.00013251,2]
[311265079,1705003838242,-1576.24044161,0.00013251,2]
[311265081,1705003838256,-230.52332349,0.00013251,2]
[311265083,1705003838265,-242.63833742,0.00013251,2]
[311265085,1705003838274,-15883.65187876,0.00013251,2]
[311265087,1705003838283,-155.1178896,0.00013252,2]
[311265089,1705003838292,-261.8211746,0.00013252,2]
[311265091,1705003838301,-270787.85398816,0.00013252,2]
[311265093,1705003838311,-155.31856783,0.00013256,2]
[311265095,1705003838322,-1239.33609761,0.00013258,2]
[311265097,1705003838332,-625.31740605,0.00013261,2]
[311265099,1705003838341,-253.30865716,0.00013266,2]
[311265101,1705003838351,-168.38978075,0.00013266,2]
[311265103,1705003838360,-309.75221062,0.00013266,2]
[311265105,1705003838370,-215.64200685,0.00013267,2]
[311265106,1705003838380,-169.65757293,0.00013267,2]
[311265107,1705003838390,-161.52679336,0.00013267,2]
[311265108,1705003838399,-176.51985459,0.00013267,2]
[311265109,1705003838409,-309.78316417,0.00013268,2]
[311265110,1705003838419,-155.53002517,0.00013275,2]
[311265111,1705003838428,-2070.70229933,0.00013275,2]
[311265112,1705003838437,-256.57944902,0.00013275,2]
[311265113,1705003838447,-222.08276498,0.00013275,2]
[311265114,1705003838457,-242.4093866,0.00013293,2]
[311265115,1705003838466,-206.44888347,0.00013384,2]
[311265116,1705003838477,-300.23083625,0.00013533,2]
[311265117,1705003838486,-1545.09147419,0.0001354,2]
[311265118,1705003838496,-178.32100537,0.00013541,2]
[311265119,1705003838506,-466.77120588,0.00013541,2]
[311265120,1705003838515,-304.4646857,0.00013546,2]
[311265121,1705003838526,-226.69168672,0.00013546,2]
[311265131,1705003838637,-309.81411154,0.00013546,2]
[311265133,1705003838648,-469.71701685,0.00013553,2]
[311265134,1705003838659,-900.88644638,0.00013553,2]
[311265137,1705003838670,-282.92595231,0.0001369,2]
[311265138,1705003838680,-4178.6254779,0.00013699,2]
[311265141,1705003838690,-3807.0703734,0.00013699,2]
[311265142,1705003838701,-1232.637218,0.00013699,2]
[311265144,1705003838711,-1610.93334896,0.00015,2]
[311265146,1705003838720,-155.09150399,0.00015,2]
[311265148,1705003838729,-686.6489252,0.00015,2]
[311265150,1705003838738,-1284.2876522,0.00015342,2]
[311265153,1705003838748,-415.16979059,0.000165,2]
[311265155,1705003838758,-242.40938657,0.00017195,2]
[311265156,1705003838766,-870.71956468,0.00017235,2]
[311265158,1705003838775,-246.10686283,0.000178,2]
[311265160,1705003838784,-7749.84285547,0.00017898,2]
[311265162,1705003838794,-155.18321527,0.00018,2]
[311265165,1705003838805,-520.61604034,0.00018885,2]
[311265167,1705003838814,-266.51885181,0.000189,2]
[311265168,1705003838823,-1578.97802722,0.00019,2]
[311265170,1705003838832,-166.842924,0.00019178,2]
[311265172,1705003838841,-1112.22182837,0.000195,2]
[311265174,1705003838851,-200.30750064,0.000196,2]
[311265176,1705003838861,-266.19065175,0.0002,2]
[311265178,1705003838870,-314.30408612,0.0002,2]
[311265180,1705003838880,-568.14998178,0.0002,2]
[311265182,1705003838889,-155.93685466,0.0002,2]
[311265184,1705003838898,-315.48561899,0.0002,2]
[311265186,1705003838909,-155.09150399,0.0002,2]
[311265188,1705003838918,-677.0708176,0.0002,2]
[311265190,1705003838927,-853.72221584,0.0002,2]
[311265192,1705003838937,-155.09150399,0.0002,2]
[311265195,1705003838947,-184.54495661,0.0002,2]
[311265197,1705003838956,-1195.27282006,0.0002,2]
[311265198,1705003838965,-4321.40443,0.0002,2]
[311265201,1705003838974,-4321.40443,0.0002,2]
[311265203,1705003838984,-4321.40443,0.0002,2]
[311265204,1705003838993,-4321.40443,0.0002,2]
[311265206,1705003839003,-4321.40443,0.0002,2]
[311265209,1705003839012,-151.60611518,0.00020323,2]
[311265211,1705003839022,-200.0,0.00020364,2]
[311265213,1705003839031,-155.09150399,0.00020364,2]
[311265215,1705003839040,-2079.89647566,0.00020364,2]
[311265216,1705003839049,-546.87419273,0.00020364,2]
[311265218,1705003839059,-283561.35337882,0.00020364,2]
[311265220,1705003839069,-344.73296744,0.00020364,2]
[311265222,1705003839079,-165.41976585,0.00020364,2]
[311265225,1705003839089,-156.20158753,0.00020364,2]
[311265227,1705003839098,-1232.637218,0.00020548,2]
[311265228,1705003839108,-260.869305,0.00020994,2]
[311265231,1705003839119,-156.85895617,0.00020994,2]
[311265233,1705003839130,-443.08272584,0.00020994,2]
[311265235,1705003839139,-989.9133338,0.00020998,2]
[311265237,1705003839149,-309.81411154,0.00020998,2]
[311265238,1705003839159,-232.56616313,0.00021,2]
[311265240,1705003839170,-21896.11056994,0.00021,2]
[311265243,1705003839180,-478.51187948,0.00021,2]
[311265244,1705003839191,-242.40938657,0.00021097,2]
[311265246,1705003839200,-166.666666,0.00021918,2]
[311265247,1705003839210,-2076.82617599,0.00022,2]
[311265248,1705003839220,-296.02443686,0.00022,2]
[311265249,1705003839231,-151.0,0.00022043,2]
[311265250,1705003839241,-166.666666,0.00022431,2]
[311265251,1705003839252,-166.666666,0.00022944,2]
[311265252,1705003839263,-2093.45221107,0.00023,2]
[311265253,1705003839272,-9923.17263833,0.00023,2]
[311265254,1705003839282,-166.666666,0.00023456,2]
[311265255,1705003839290,-151.0,0.00023724,2]
[311265256,1705003839299,-266.51885181,0.000239,2]
[311265257,1705003839309,-166.666666,0.00023969,2]
[311265258,1705003839318,-614.12133667,0.00024,2]
[311265259,1705003839327,-4005.39956635,0.00024,2]
[311265260,1705003839337,-166.666666,0.00024482,2]
[311265261,1705003839346,-687.75702701,0.000247,2]
[311265262,1705003839355,-242.40938657,0.00024998,2]
[311265263,1705003839364,-799.75816009,0.00025,2]
[311265264,1705003839373,-2097.96974047,0.00025,2]
[311265265,1705003839382,-4711.91259146,0.00025,2]
[311265266,1705003839391,-309.81411154,0.00025,2]
[311265268,1705003839400,-677.62834989,0.00025,2]
[311265270,1705003839409,-622.93386223,0.0002508,2]
[311265272,1705003839418,-151.0,0.00025404,2]
[311265273,1705003839428,-525.99300196,0.00026,2]
[311265275,1705003839437,-620.14669311,0.00026334,2]
[311265277,1705003839446,-155.07909034,0.00027,7]
[311265279,1705003839455,-460.6542226,0.00027,2]
[311265281,1705003839465,-151.0,0.00027085,2]
[311265283,1705003839474,-155.0,0.00027397,2]
[311265285,1705003839483,-323.71326909,0.00027397,2]
[311265287,1705003839492,-721.70066033,0.00027397,2]
[311265289,1705003839503,-151.113335,0.00027557,7]
[311265291,1705003839515,-620.00733466,0.00027651,2]
[311265293,1705003839523,-9297.49365479,0.00028,2]
[311265295,1705003839532,-237.60910002,0.00028,2]
[311265297,1705003839541,-151.113335,0.00028119,4]
[311265299,1705003839550,-20547.39284893,0.00028578,3]
[311265300,1705003839559,-560.79074787,0.00028578,3]
[311265301,1705003839568,-151.113335,0.00028693,2]
[311265302,1705003839577,-10623.80376589,0.00028749,2]
[311265303,1705003839586,-151.0,0.00028765,2]
[311265304,1705003839595,-155.0,0.00028767,2]
[311265305,1705003839603,-242.40938657,0.000289,2]
[311265306,1705003839613,-266.51885181,0.000289,2]
[311265307,1705003839621,-155.07288426,0.00029,2]
[311265308,1705003839630,-118637.29995858,0.00029,2]
[311265309,1705003839639,-79469.02841882,0.00029,2]
[311265310,1705003839648,-3025.449916,0.00029,2]
[311265311,1705003839658,-620.00036673,0.00029033,2]
[311265312,1705003839666,-49610.06269275,0.000293,5]
[311265313,1705003839675,-279.348549,0.00029311,2]
[311265314,1705003839685,-202.983166,0.00029311,2]
[311265315,1705003839694,-164.552346,0.00029311,2]
[311265316,1705003839703,-511.950936,0.00029311,2]
[311265317,1705003839712,-632.222821,0.00029311,2]
[311265318,1705003839721,-152.31739519,0.00029486,2]
[311265319,1705003839730,-154.09671267,0.00029564,2]
[311265320,1705003839740,-199.881506,0.00029606,2]
[311265321,1705003839750,-318.163318,0.00029606,2]
[311265322,1705003839760,-279.348549,0.00029677,2]
[311265323,1705003839769,-202.983166,0.00029677,2]
[311265324,1705003839778,-511.950936,0.00029677,2]
[311265325,1705003839787,-632.222821,0.00029677,2]
[311265326,1705003839796,-154.09671267,0.00029683,2]
[311265327,1705003839805,-254.23001474,0.00029701,3]
[311265328,1705003839814,-334.36433198,0.00029789,2]
[311265329,1705003839824,-365.49791812,0.00029789,2]
[311265330,1705003839833,-602.9479497,0.00029789,2]
[311265331,1705003839842,-500.0,0.00029789,2]
[311265332,1705003839851,-500.0,0.00029789,2]
[311265333,1705003839861,-614.24655462,0.00029789,2]
[311265334,1705003839870,-500.0,0.00029789,2]
[311265335,1705003839879,-500.0,0.00029789,2]
[311265336,1705003839888,-500.0,0.00029789,2]
[311265337,1705003839897,-611.03290387,0.00029789,2]
[311265338,1705003839906,-500.0,0.00029789,2]
[311265339,1705003839916,-522.74457389,0.00029789,2]
[311265340,1705003839925,-500.0,0.00029789,2]
[311265341,1705003839934,-500.0,0.00029789,2]
[311265342,1705003839943,-500.0,0.00029789,2]
[311265343,1705003839952,-500.0,0.00029789,2]
[311265344,1705003839961,-357430.98576647,0.0002979,7]
[311265345,1705003839971,-374.452905,0.0002979,2]
[311265346,1705003839980,-374.452905,0.0002979,2]
[311265347,1705003839990,-22848.37877952,0.000298,2]
[311265348,1705003840000,-154.09671267,0.0002984,2]
[311265349,1705003840009,-318.163318,0.00029977,2]
[311265350,1705003840018,-10528.61647802,0.0003,4]
[311265351,1705003840027,-899.90173962,0.0003,2]
[311265352,1705003840037,-6183.76397391,0.0003,2]
[311265353,1705003840046,-2188.79308094,0.0003,2]
[311265354,1705003840059,-74501.65132877,0.0003,2]
[311265355,1705003840067,-8912.47143386,0.0003,3]
[311265356,1705003840076,-3799.999999,0.0003,2]
[311265357,1705003840085,-22726.82712211,0.0003,3]
[311265358,1705003840095,-8035.64264101,0.0003,14]
[311265359,1705003840105,-36066.81272948,0.0003,10]
[311265360,1705003840114,-1000.18263852,0.0003,10]
[311265361,1705003840123,-18553.45565274,0.0003,2]
[311265362,1705003840133,-698.89862508,0.0003,2]
[311265363,1705003840143,-2151.8403773,0.0003,4]
[311265364,1705003840152,-6975.26133049,0.0003,4]
[311265365,1705003840161,-571.17512685,0.0003,2]
[311265366,1705003840170,-434.02469415,0.0003,4]
[311265367,1705003840179,-639.80669723,0.0003,4]
[311265368,1705003840187,-163.55638359,0.0003,5]
[311265369,1705003840197,-55552.1602185,0.0003,15]
[311265370,1705003840206,-686.8051383,0.0003,4]
[311265371,1705003840215,-18742.68961404,0.0003,4]
[311265372,1705003840224,-1200.0,0.0003,4]
[311265373,1705003840233,-244.50330111,0.0003,7]
[311265374,1705003840242,-374.452905,0.0003,2]
[311265375,1705003840252,-374.452905,0.0003,2]
[311265376,1705003840260,-1285.322819,0.0003,2]
[311265377,1705003840269,-1285.322819,0.0003,2]
[311265378,1705003840278,-1170.38637174,0.0003,2]
[311265379,1705003840287,-234.0,0.0003,2]
[311265380,1705003840296,-154.09671267,0.00030036,7]
[311265381,1705003840305,-279.348549,0.00030043,2]
[311265382,1705003840314,-202.983166,0.00030043,2]
[311265383,1705003840323,-511.950936,0.00030043,2]
[311265384,1705003840332,-632.222821,0.00030043,2]
[311265385,1705003840341,-154.09671267,0.00030046,7]
[311265386,1705003840350,-300.0,0.000301,14]
[311265387,1705003840359,-197.37626976,0.0003013,2]
[311265388,1705003840368,-154.09671267,0.00030134,7]
[311265389,1705003840378,-200.61953262,0.00030136,2]
[311265390,1705003840387,-500.0,0.00030136,2]
[311265391,1705003840396,-500.0,0.00030136,2]
[311265392,1705003840405,-500.0,0.00030136,2]
[311265393,1705003840414,-500.0,0.00030136,2]
[311265394,1705003840424,-500.0,0.00030136,2]
[311265395,1705003840433,-500.0,0.00030136,2]
[311265396,1705003840442,-510.97783528,0.00030136,2]
[311265397,1705003840452,-500.0,0.00030136,2]
[311265398,1705003840460,-500.0,0.00030136,2]